[Event "Betsys MČR v online bleskovém šachu 2021"]
[Site "Chess.com"]
[Date "2021.04.17"]
[Round "9"]
[White "tucnak64"]
[Black "avsokol"]
[Result "1-0"]
[WhiteElo "2135"]
[BlackElo "2344"]
[TimeControl "180+1"]
[EndTime "10:29:53 PDT"]
[Termination "Uživatel tucnak64 zvítězil na čas"]

1. e4 {[%clk 0:03:00.7]} 1... c5 {[%clk 0:03:00]} 2. Nf3 {[%clk 0:03:00.4]} 2...
d6 {[%clk 0:03:00.5]} 3. d4 {[%clk 0:03:00.2]} 3... cxd4 {[%clk 0:03:01.4]} 4.
Nxd4 {[%clk 0:03:00.6]} 4... Nf6 {[%clk 0:03:01.9]} 5. Nc3 {[%clk 0:03:01]} 5...
g6 {[%clk 0:03:02.2]} 6. g3 {[%clk 0:02:58.9]} 6... Nc6 {[%clk 0:03:00.6]} 7.
Nde2 {[%clk 0:02:58.6]} 7... Bd7 {[%clk 0:03:00.7]} 8. Bg2 {[%clk 0:02:58.4]}
8... Qc8 {[%clk 0:03:00.7]} 9. h3 {[%clk 0:02:56.8]} 9... Bg7 {[%clk 0:02:59.8]}
10. Nd5 {[%clk 0:02:56.8]} 10... Nxd5 {[%clk 0:02:52.5]} 11. exd5 {[%clk
0:02:56.6]} 11... Ne5 {[%clk 0:02:49]} 12. a4 {[%clk 0:02:53.4]} 12... Nc4
{[%clk 0:02:44]} 13. Ra2 {[%clk 0:02:50.9]} 13... O-O {[%clk 0:01:32.8]} 14. b3
{[%clk 0:02:48.2]} 14... Na5 {[%clk 0:01:32.1]} 15. c4 {[%clk 0:02:42.2]} 15...
b6 {[%clk 0:01:24.4]} 16. Nf4 {[%clk 0:02:29.6]} 16... a6 {[%clk 0:01:05.9]} 17.
O-O {[%clk 0:02:24.9]} 17... b5 {[%clk 0:01:04.6]} 18. cxb5 {[%clk 0:02:13.7]}
18... axb5 {[%clk 0:01:04.6]} 19. b4 {[%clk 0:02:13.5]} 19... Nc4 {[%clk
0:01:04.1]} 20. a5 {[%clk 0:02:13.3]} 20... Re8 {[%clk 0:00:43.5]} 21. Kh2
{[%clk 0:02:10.3]} 21... Qc7 {[%clk 0:00:41.9]} 22. Re1 {[%clk 0:02:08.2]} 22...
Bf5 {[%clk 0:00:39.6]} 23. g4 {[%clk 0:02:00.7]} 23... Bd7 {[%clk 0:00:23.4]}
24. Rae2 {[%clk 0:01:54.7]} 24... Ne5 {[%clk 0:00:21.1]} 25. Nd3 {[%clk
0:01:42.3]} 25... Nxd3 {[%clk 0:00:15.6]} 26. Qxd3 {[%clk 0:01:41.6]} 26... Kf8
{[%clk 0:00:14.3]} 27. Bd2 {[%clk 0:01:38.7]} 27... Rac8 {[%clk 0:00:10.8]} 28.
Rc1 {[%clk 0:01:27.3]} 28... Qb7 {[%clk 0:00:10.3]} 29. Ree1 {[%clk 0:01:19.5]}
29... Be5+ {[%clk 0:00:06]} 30. f4 {[%clk 0:01:17.7]} 30... Bf6 {[%clk
0:00:05.7]} 31. Bc3 {[%clk 0:01:09.4]} 31... Bxc3 {[%clk 0:00:05.2]} 32. Rxc3
{[%clk 0:01:09.2]} 32... Rxc3 {[%clk 0:00:04.2]} 33. Qxc3 {[%clk 0:01:10.1]}
33... f6 {[%clk 0:00:04.6]} 34. Qe3 {[%clk 0:01:05]} 34... Kf7 {[%clk
0:00:01.1]} 35. Kg3 {[%clk 0:01:02.1]} 1-0

[Event "Betsys MČR v online bleskovém šachu 2021"]
[Site "Chess.com"]
[Date "2021.04.17"]
[Round "9"]
[White "kubajss"]
[Black "Dale00007"]
[Result "0-1"]
[WhiteElo "907"]
[BlackElo "1399"]
[TimeControl "180+1"]
[EndTime "10:29:54 PDT"]
[Termination "Uživatel Dale00007 zvítězil na čas"]

1. e4 {[%clk 0:03:00.9]} 1... c5 {[%clk 0:02:59]} 2. Nc3 {[%clk 0:02:57.6]} 2...
d6 {[%clk 0:02:48.4]} 3. Bc4 {[%clk 0:02:56.6]} 3... Nc6 {[%clk 0:02:47.4]} 4.
Nf3 {[%clk 0:02:56.4]} 4... e6 {[%clk 0:02:47.2]} 5. d4 {[%clk 0:02:51.9]} 5...
cxd4 {[%clk 0:02:45.1]} 6. Nxd4 {[%clk 0:02:51.2]} 6... Nxd4 {[%clk 0:02:45]} 7.
Qxd4 {[%clk 0:02:51.1]} 7... Qc7 {[%clk 0:02:40.8]} 8. Bb5+ {[%clk 0:02:42.7]}
8... Bd7 {[%clk 0:02:38.7]} 9. O-O {[%clk 0:02:35.7]} 9... a6 {[%clk 0:02:28.6]}
10. Bxd7+ {[%clk 0:02:34.5]} 10... Qxd7 {[%clk 0:02:28.4]} 11. Re1 {[%clk
0:02:27.3]} 11... Be7 {[%clk 0:02:22.7]} 12. e5 {[%clk 0:02:12.2]} 12... d5
{[%clk 0:02:15.9]} 13. Bf4 {[%clk 0:02:07]} 13... Rc8 {[%clk 0:02:06.3]} 14. Re2
{[%clk 0:01:51.7]} 14... Bc5 {[%clk 0:02:05.4]} 15. Qd2 {[%clk 0:01:42.6]} 15...
Ne7 {[%clk 0:02:03.5]} 16. a3 {[%clk 0:01:38.7]} 16... O-O {[%clk 0:01:56.5]}
17. b4 {[%clk 0:01:38.2]} 17... Ba7 {[%clk 0:01:55.9]} 18. Be3 {[%clk
0:01:28.5]} 18... Bxe3 {[%clk 0:01:49.1]} 19. Rxe3 {[%clk 0:01:28.9]} 19... b5
{[%clk 0:01:46.2]} 20. Ne2 {[%clk 0:01:25.9]} 20... Nf5 {[%clk 0:01:35.6]} 21.
Rc3 {[%clk 0:01:14.8]} 21... Rxc3 {[%clk 0:01:21.2]} 22. Qxc3 {[%clk 0:01:13.8]}
22... Rc8 {[%clk 0:01:20.2]} 23. Qd3 {[%clk 0:01:07.8]} 23... Qc7 {[%clk
0:01:18.6]} 24. Rc1 {[%clk 0:01:06.8]} 24... Qxe5 {[%clk 0:01:13.3]} 25. g3
{[%clk 0:00:33.1]} 25... Nd6 {[%clk 0:00:55.8]} 26. f4 {[%clk 0:00:14.1]} 26...
Qf6 {[%clk 0:00:44.9]} 0-1

[Event "Betsys MČR v online bleskovém šachu 2021"]
[Site "Chess.com"]
[Date "2021.04.17"]
[Round "9"]
[White "pedroholly22"]
[Black "xnepom"]
[Result "1-0"]
[WhiteElo "2397"]
[BlackElo "2247"]
[TimeControl "180+1"]
[EndTime "10:29:56 PDT"]
[Termination "Uživatel pedroholly22 zvítězil po vzdání soupeře"]

1. e4 {[%clk 0:03:00.9]} 1... c5 {[%clk 0:02:55.8]} 2. Nf3 {[%clk 0:03:00.5]}
2... Nc6 {[%clk 0:02:56]} 3. Bb5 {[%clk 0:02:59.5]} 3... g6 {[%clk 0:02:55.5]}
4. O-O {[%clk 0:02:59.1]} 4... Bg7 {[%clk 0:02:55.8]} 5. Re1 {[%clk 0:02:59.7]}
5... e5 {[%clk 0:02:55.8]} 6. d3 {[%clk 0:02:54.2]} 6... Nge7 {[%clk 0:02:55]}
7. Be3 {[%clk 0:02:51.4]} 7... d6 {[%clk 0:02:53.8]} 8. c3 {[%clk 0:02:47.9]}
8... O-O {[%clk 0:02:53.3]} 9. h3 {[%clk 0:02:44.4]} 9... a6 {[%clk 0:02:46.6]}
10. Bc4 {[%clk 0:02:31.7]} 10... b5 {[%clk 0:02:46.3]} 11. Bb3 {[%clk
0:02:31.7]} 11... Na5 {[%clk 0:02:46.8]} 12. Bc2 {[%clk 0:02:31.7]} 12... Bb7
{[%clk 0:02:44.7]} 13. Nbd2 {[%clk 0:02:30.5]} 13... Rc8 {[%clk 0:02:43.3]} 14.
Nf1 {[%clk 0:02:29.4]} 14... d5 {[%clk 0:02:34.4]} 15. Qc1 {[%clk 0:02:23.6]}
15... Re8 {[%clk 0:02:09.3]} 16. b3 {[%clk 0:02:09.1]} 16... d4 {[%clk 0:02:06]}
17. Bd2 {[%clk 0:02:07.6]} 17... dxc3 {[%clk 0:02:03.8]} 18. Bxc3 {[%clk
0:02:06.8]} 18... Nac6 {[%clk 0:02:04.3]} 19. Qb2 {[%clk 0:01:57.4]} 19... Qc7
{[%clk 0:01:55.7]} 20. Rac1 {[%clk 0:01:56.5]} 20... h6 {[%clk 0:01:36.1]} 21.
Ne3 {[%clk 0:01:51]} 21... Nd4 {[%clk 0:01:27.3]} 22. Bd1 {[%clk 0:01:43]} 22...
Nxf3+ {[%clk 0:01:26]} 23. Bxf3 {[%clk 0:01:42.1]} 23... Qd6 {[%clk 0:01:25.3]}
24. Red1 {[%clk 0:01:41.4]} 24... Red8 {[%clk 0:01:25.4]} 25. Ba5 {[%clk
0:01:39.6]} 25... Re8 {[%clk 0:01:23.8]} 26. b4 {[%clk 0:01:38.3]} 26... Qd4
{[%clk 0:01:16.9]} 27. Qxd4 {[%clk 0:01:22.5]} 27... cxd4 {[%clk 0:01:16.5]} 28.
Nd5 {[%clk 0:01:23]} 28... Nxd5 {[%clk 0:00:48.4]} 29. exd5 {[%clk 0:01:23.9]}
29... Bf8 {[%clk 0:00:47.6]} 30. a3 {[%clk 0:01:18.5]} 30... Rxc1 {[%clk
0:00:44.2]} 31. Rxc1 {[%clk 0:01:17.5]} 31... Rc8 {[%clk 0:00:44.8]} 32. Rxc8
{[%clk 0:01:10.5]} 32... Bxc8 {[%clk 0:00:45]} 33. Bb6 {[%clk 0:01:10.5]} 33...
f5 {[%clk 0:00:40.6]} 34. Bc7 {[%clk 0:01:08.2]} 34... Bg7 {[%clk 0:00:36.6]}
35. d6 {[%clk 0:01:06.8]} 35... Kf8 {[%clk 0:00:36.8]} 36. Bc6 {[%clk 0:01:05]}
36... e4 {[%clk 0:00:30.2]} 37. d7 {[%clk 0:00:52.5]} 37... Bxd7 {[%clk
0:00:29.7]} 38. Bxd7 {[%clk 0:00:53.4]} 38... Ke7 {[%clk 0:00:27.5]} 39. Bc8
{[%clk 0:00:50.9]} 39... exd3 {[%clk 0:00:27.4]} 40. Kf1 {[%clk 0:00:50.4]} 1-0

[Event "Betsys MČR v online bleskovém šachu 2021"]
[Site "Chess.com"]
[Date "2021.04.17"]
[Round "9"]
[White "Jindrich4321"]
[Black "Rozmetal"]
[Result "0-1"]
[WhiteElo "1933"]
[BlackElo "2146"]
[TimeControl "180+1"]
[EndTime "10:29:56 PDT"]
[Termination "Uživatel Rozmetal zvítězil po vzdání soupeře"]

1. d4 {[%clk 0:03:00.9]} 1... c5 {[%clk 0:02:59.7]} 2. d5 {[%clk 0:03:00]} 2...
e5 {[%clk 0:02:59.1]} 3. e4 {[%clk 0:02:59.9]} 3... d6 {[%clk 0:02:59.1]} 4. f4
{[%clk 0:02:59.6]} 4... exf4 {[%clk 0:02:57.9]} 5. Bxf4 {[%clk 0:02:58.4]} 5...
Ne7 {[%clk 0:02:58.3]} 6. Nf3 {[%clk 0:02:57.8]} 6... Ng6 {[%clk 0:02:58.5]} 7.
Bg3 {[%clk 0:02:57.1]} 7... Be7 {[%clk 0:02:59]} 8. Nc3 {[%clk 0:02:56.9]} 8...
O-O {[%clk 0:02:57.6]} 9. Bd3 {[%clk 0:02:56.8]} 9... Re8 {[%clk 0:02:57.8]} 10.
O-O {[%clk 0:02:56.1]} 10... a6 {[%clk 0:02:57.9]} 11. a4 {[%clk 0:02:55.2]}
11... Bf6 {[%clk 0:02:53.1]} 12. Qd2 {[%clk 0:02:52.3]} 12... Qe7 {[%clk
0:02:46.3]} 13. h3 {[%clk 0:02:48]} 13... Nd7 {[%clk 0:02:44.8]} 14. Rae1 {[%clk
0:02:46.7]} 14... Nde5 {[%clk 0:02:45.1]} 15. Nxe5 {[%clk 0:02:45.7]} 15... Nxe5
{[%clk 0:02:44.2]} 16. b3 {[%clk 0:02:37.6]} 16... Bd7 {[%clk 0:02:41.9]} 17.
Nd1 {[%clk 0:02:33.3]} 17... g6 {[%clk 0:02:39.8]} 18. Ne3 {[%clk 0:02:32.2]}
18... Bg7 {[%clk 0:02:39.1]} 19. Nc4 {[%clk 0:02:29.2]} 19... b5 {[%clk
0:02:34]} 20. Nb6 {[%clk 0:02:13.4]} 20... Rab8 {[%clk 0:02:31]} 21. Nxd7 {[%clk
0:02:12.5]} 21... Qxd7 {[%clk 0:02:30.8]} 22. axb5 {[%clk 0:02:09.9]} 22... axb5
{[%clk 0:02:30]} 23. Be2 {[%clk 0:02:06.6]} 23... h5 {[%clk 0:02:20.3]} 24. Bxe5
{[%clk 0:02:01.8]} 24... Bxe5 {[%clk 0:02:15.3]} 25. Bd3 {[%clk 0:01:53]} 25...
b4 {[%clk 0:02:10.5]} 26. Qe2 {[%clk 0:01:46.6]} 26... Qe7 {[%clk 0:02:09.9]}
27. Qf3 {[%clk 0:01:44.1]} 27... Rb7 {[%clk 0:02:02.9]} 28. Kh1 {[%clk
0:01:43.4]} 28... Qh4 {[%clk 0:02:00.6]} 29. Re2 {[%clk 0:01:37.3]} 29... Ree7
{[%clk 0:01:57.9]} 30. Ref2 {[%clk 0:01:35.2]} 30... Ra7 {[%clk 0:01:54.4]} 31.
Re2 {[%clk 0:01:33]} 31... Ra1 {[%clk 0:01:52]} 32. Rxa1 {[%clk 0:01:28.7]}
32... Bxa1 {[%clk 0:01:52.9]} 33. Rf2 {[%clk 0:01:25.8]} 33... Be5 {[%clk
0:01:51.7]} 34. Rf1 {[%clk 0:01:24.2]} 34... Ra7 {[%clk 0:01:50.1]} 35. Bb5
{[%clk 0:01:20.8]} 35... Qe7 {[%clk 0:01:47.7]} 36. Ba4 {[%clk 0:01:18.4]} 36...
c4 {[%clk 0:01:44.3]} 37. Qf2 {[%clk 0:01:10.4]} 37... c3 {[%clk 0:01:18.2]} 38.
Qb6 {[%clk 0:01:03.4]} 38... Kg7 {[%clk 0:01:10.4]} 39. Rf3 {[%clk 0:00:42.5]}
39... Rb7 {[%clk 0:01:05.7]} 40. Qf2 {[%clk 0:00:40.9]} 40... Qg5 {[%clk
0:01:02.6]} 41. Qe3 {[%clk 0:00:38.4]} 41... Qh4 {[%clk 0:01:00.1]} 42. Qf2
{[%clk 0:00:37.9]} 42... Qxe4 {[%clk 0:00:58.7]} 43. Bc6 {[%clk 0:00:31.9]}
43... Re7 {[%clk 0:00:56.8]} 44. Qf1 {[%clk 0:00:28.8]} 44... Qxc2 {[%clk
0:00:54.7]} 0-1

[Event "Betsys MČR v online bleskovém šachu 2021"]
[Site "Chess.com"]
[Date "2021.04.17"]
[Round "9"]
[White "jarda1955"]
[Black "Rognort"]
[Result "1-0"]
[WhiteElo "1999"]
[BlackElo "1787"]
[TimeControl "180+1"]
[EndTime "10:30:02 PDT"]
[Termination "Uživatel jarda1955 zvítězil matem"]

1. d4 {[%clk 0:03:00.9]} 1... Nf6 {[%clk 0:02:59.4]} 2. c4 {[%clk 0:03:00.3]}
2... e6 {[%clk 0:02:59.9]} 3. Nc3 {[%clk 0:02:58.9]} 3... Bb4 {[%clk 0:03:00.5]}
4. Qc2 {[%clk 0:02:59]} 4... c5 {[%clk 0:02:59]} 5. dxc5 {[%clk 0:02:55.8]} 5...
Bxc5 {[%clk 0:02:56.7]} 6. Nf3 {[%clk 0:02:53.1]} 6... b6 {[%clk 0:02:53.7]} 7.
Bg5 {[%clk 0:02:43.6]} 7... h6 {[%clk 0:02:52.4]} 8. Bh4 {[%clk 0:02:41.9]} 8...
Be7 {[%clk 0:02:19.1]} 9. e3 {[%clk 0:02:40.2]} 9... Bb7 {[%clk 0:02:17.5]} 10.
Rd1 {[%clk 0:02:38.4]} 10... Qc7 {[%clk 0:02:10.4]} 11. Be2 {[%clk 0:02:27]}
11... a6 {[%clk 0:02:10.3]} 12. O-O {[%clk 0:02:24.7]} 12... O-O {[%clk
0:02:00.4]} 13. Nd4 {[%clk 0:02:07.9]} 13... d5 {[%clk 0:01:53.7]} 14. Bg3
{[%clk 0:01:51.4]} 14... e5 {[%clk 0:01:47.9]} 15. Nf5 {[%clk 0:01:43.1]} 15...
dxc4 {[%clk 0:01:36.6]} 16. Nxe7+ {[%clk 0:01:37.2]} 16... Qxe7 {[%clk
0:01:37.5]} 17. Bxc4 {[%clk 0:01:36]} 17... b5 {[%clk 0:01:32.2]} 18. Nd5 {[%clk
0:01:26.9]} 18... Bxd5 {[%clk 0:01:15.2]} 19. Bxd5 {[%clk 0:01:26.3]} 19... Nxd5
{[%clk 0:01:15.8]} 20. Rxd5 {[%clk 0:01:24.9]} 20... Nd7 {[%clk 0:00:59.6]} 21.
Qc7 {[%clk 0:01:19.9]} 21... Rad8 {[%clk 0:00:54.1]} 22. Rfd1 {[%clk 0:01:18.7]}
22... Qb4 {[%clk 0:00:25.2]} 23. Rxd7 {[%clk 0:01:14]} 23... Rxd7 {[%clk
0:00:24.8]} 24. Qxd7 {[%clk 0:01:12.6]} 24... Qxb2 {[%clk 0:00:25.4]} 25. Qd5
{[%clk 0:01:11.1]} 25... Re8 {[%clk 0:00:22.6]} 26. h4 {[%clk 0:01:08.8]} 26...
Qe2 {[%clk 0:00:20.2]} 27. Rc1 {[%clk 0:01:01.3]} 27... Kh7 {[%clk 0:00:17.1]}
28. Qxf7 {[%clk 0:00:58.7]} 28... Rd8 {[%clk 0:00:11.1]} 29. Qf5+ {[%clk
0:00:53.2]} 29... Kh8 {[%clk 0:00:11.3]} 30. Bxe5 {[%clk 0:00:48.8]} 30... Rd1+
{[%clk 0:00:09.6]} 31. Rxd1 {[%clk 0:00:47.3]} 31... Qxd1+ {[%clk 0:00:10.5]}
32. Kh2 {[%clk 0:00:46.5]} 32... Qd5 {[%clk 0:00:06.2]} 33. Qf8+ {[%clk
0:00:45.1]} 33... Kh7 {[%clk 0:00:04.7]} 34. Qxg7# {[%clk 0:00:44.1]} 1-0

[Event "Betsys MČR v online bleskovém šachu 2021"]
[Site "Chess.com"]
[Date "2021.04.17"]
[Round "9"]
[White "RomanHlavicka"]
[Black "tiger196223"]
[Result "0-1"]
[WhiteElo "1537"]
[BlackElo "1828"]
[TimeControl "180+1"]
[EndTime "10:30:02 PDT"]
[Termination "Uživatel tiger196223 zvítězil po vzdání soupeře"]

1. e4 {[%clk 0:03:00.9]} 1... e6 {[%clk 0:02:59.7]} 2. d4 {[%clk 0:02:59.8]}
2... d5 {[%clk 0:02:58.9]} 3. e5 {[%clk 0:02:59.6]} 3... c5 {[%clk 0:02:58.4]}
4. c3 {[%clk 0:02:56.5]} 4... Qb6 {[%clk 0:02:58]} 5. a3 {[%clk 0:02:55.4]} 5...
Bd7 {[%clk 0:02:55.8]} 6. Nf3 {[%clk 0:02:54.3]} 6... Bb5 {[%clk 0:02:55.6]} 7.
Be2 {[%clk 0:02:53.2]} 7... Bxe2 {[%clk 0:02:55.2]} 8. Qxe2 {[%clk 0:02:52.1]}
8... cxd4 {[%clk 0:02:55.2]} 9. Nxd4 {[%clk 0:02:47.4]} 9... Ne7 {[%clk
0:02:54.1]} 10. O-O {[%clk 0:02:39.7]} 10... Nec6 {[%clk 0:02:52.9]} 11. Nd2
{[%clk 0:02:32.7]} 11... Nxd4 {[%clk 0:02:49.4]} 12. cxd4 {[%clk 0:02:32.4]}
12... Nc6 {[%clk 0:02:42.3]} 13. Nf3 {[%clk 0:02:28.7]} 13... Be7 {[%clk
0:02:26.2]} 14. Be3 {[%clk 0:02:25.6]} 14... O-O {[%clk 0:02:23.2]} 15. Rfc1
{[%clk 0:02:24.2]} 15... Rac8 {[%clk 0:02:22.1]} 16. Rc3 {[%clk 0:02:17.5]}
16... Na5 {[%clk 0:02:18.8]} 17. Rxc8 {[%clk 0:02:13.2]} 17... Rxc8 {[%clk
0:02:14.6]} 18. Rc1 {[%clk 0:02:13.1]} 18... Rxc1+ {[%clk 0:02:09.3]} 19. Bxc1
{[%clk 0:02:12.1]} 19... Qb3 {[%clk 0:02:04.1]} 20. Bd2 {[%clk 0:01:47.6]} 20...
Qxb2 {[%clk 0:01:51.4]} 21. Qe1 {[%clk 0:01:37.5]} 21... Nc4 {[%clk 0:01:40.2]}
22. Bc1 {[%clk 0:01:32.6]} 22... Qa2 {[%clk 0:01:14.7]} 23. h3 {[%clk
0:01:15.2]} 23... Bxa3 {[%clk 0:01:03.7]} 24. Bxa3 {[%clk 0:01:12.8]} 24... Qxa3
{[%clk 0:01:03.3]} 25. Qb1 {[%clk 0:01:11.4]} 25... Qb2 {[%clk 0:00:58.6]} 26.
Qd1 {[%clk 0:01:05]} 26... b5 {[%clk 0:00:51.5]} 27. Qd3 {[%clk 0:00:55.6]}
27... a5 {[%clk 0:00:45.1]} 28. Ng5 {[%clk 0:00:54.9]} 28... Qc1+ {[%clk
0:00:37.9]} 29. Kh2 {[%clk 0:00:49.4]} 29... Qxg5 {[%clk 0:00:37.4]} 30. Qb3
{[%clk 0:00:48.1]} 30... b4 {[%clk 0:00:36.2]} 31. Qa4 {[%clk 0:00:47.2]} 31...
g6 {[%clk 0:00:30.5]} 32. Qe8+ {[%clk 0:00:42.8]} 32... Kg7 {[%clk 0:00:30.6]}
33. Qa8 {[%clk 0:00:40.6]} 33... Qf4+ {[%clk 0:00:28.9]} 34. Kg1 {[%clk
0:00:39.5]} 34... Qxd4 {[%clk 0:00:27.6]} 35. Qb8 {[%clk 0:00:32.1]} 35... Qxe5
{[%clk 0:00:25.3]} 0-1

[Event "Betsys MČR v online bleskovém šachu 2021"]
[Site "Chess.com"]
[Date "2021.04.17"]
[Round "9"]
[White "Dejfos"]
[Black "svTomas"]
[Result "1-0"]
[WhiteElo "1758"]
[BlackElo "1432"]
[TimeControl "180+1"]
[EndTime "10:30:03 PDT"]
[Termination "Uživatel Dejfos zvítězil matem"]

1. e4 {[%clk 0:02:44.3]} 1... e5 {[%clk 0:02:58.9]} 2. Nf3 {[%clk 0:02:43.9]}
2... Nf6 {[%clk 0:02:58.6]} 3. Bc4 {[%clk 0:02:44.3]} 3... Nxe4 {[%clk
0:02:57.4]} 4. Nxe5 {[%clk 0:02:43.4]} 4... d5 {[%clk 0:02:55.9]} 5. Qf3 {[%clk
0:02:34.2]} 5... Qf6 {[%clk 0:02:38.1]} 6. Bxd5 {[%clk 0:02:28.5]} 6... Qxf3
{[%clk 0:02:30.4]} 7. gxf3 {[%clk 0:02:23.7]} 7... Nf6 {[%clk 0:02:31.3]} 8.
Bxf7+ {[%clk 0:02:22.9]} 8... Kd8 {[%clk 0:02:28.3]} 9. Bb3 {[%clk 0:02:21.7]}
9... Ke7 {[%clk 0:02:20.4]} 10. d4 {[%clk 0:02:14.6]} 10... Nbd7 {[%clk
0:02:19.9]} 11. Bg5 {[%clk 0:02:06]} 11... h6 {[%clk 0:02:16.5]} 12. Be3 {[%clk
0:02:02.8]} 12... Nxe5 {[%clk 0:02:11.3]} 13. dxe5 {[%clk 0:02:02]} 13... Nd7
{[%clk 0:02:08.7]} 14. f4 {[%clk 0:01:59.7]} 14... b6 {[%clk 0:02:07.2]} 15. Nd2
{[%clk 0:01:59.7]} 15... Bb7 {[%clk 0:02:06.9]} 16. Rg1 {[%clk 0:01:57.2]} 16...
Nc5 {[%clk 0:02:06.7]} 17. O-O-O {[%clk 0:01:49.4]} 17... Rd8 {[%clk 0:02:04.9]}
18. Nc4 {[%clk 0:01:37.4]} 18... Bf3 {[%clk 0:01:59]} 19. Rxd8 {[%clk
0:01:34.8]} 19... Kxd8 {[%clk 0:01:58.1]} 20. Bxc5 {[%clk 0:01:30.2]} 20... Bxc5
{[%clk 0:01:48.7]} 21. Rxg7 {[%clk 0:01:29]} 21... Bxf2 {[%clk 0:01:48.9]} 22.
e6 {[%clk 0:01:26.9]} 22... Re8 {[%clk 0:01:47.4]} 23. Ne5 {[%clk 0:01:14.7]}
23... Be4 {[%clk 0:01:22.6]} 24. Rd7+ {[%clk 0:00:54.8]} 24... Kc8 {[%clk
0:01:22]} 25. Rf7 {[%clk 0:00:37.8]} 25... Be3+ {[%clk 0:01:20]} 26. Kb1 {[%clk
0:00:33.4]} 26... c5 {[%clk 0:01:18.7]} 27. f5 {[%clk 0:00:31.3]} 27... c4
{[%clk 0:01:07.3]} 28. Bxc4 {[%clk 0:00:28.6]} 28... Rg8 {[%clk 0:01:04.6]} 29.
a3 {[%clk 0:00:27.3]} 29... b5 {[%clk 0:01:00.1]} 30. Bxb5 {[%clk 0:00:24.6]}
30... Rg1+ {[%clk 0:00:59.4]} 31. Ka2 {[%clk 0:00:23.7]} 31... Bd5+ {[%clk
0:00:59.6]} 32. Bc4 {[%clk 0:00:22.6]} 32... Be4 {[%clk 0:00:57.3]} 33. Rf8+
{[%clk 0:00:20.5]} 33... Kc7 {[%clk 0:00:56.1]} 34. e7 {[%clk 0:00:20.4]} 34...
Bxc2 {[%clk 0:00:55.5]} 35. e8=Q {[%clk 0:00:18]} 35... Bb1+ {[%clk 0:00:54.1]}
36. Kb3 {[%clk 0:00:18.3]} 36... Rg2 {[%clk 0:00:48]} 37. Qd7+ {[%clk
0:00:17.2]} 37... Kb6 {[%clk 0:00:47.2]} 38. Qc6+ {[%clk 0:00:16.9]} 38... Ka5
{[%clk 0:00:46.7]} 39. Qb5# {[%clk 0:00:16.7]} 1-0

[Event "Betsys MČR v online bleskovém šachu 2021"]
[Site "Chess.com"]
[Date "2021.04.17"]
[Round "9"]
[White "dzerenyss"]
[Black "Vojta0007"]
[Result "0-1"]
[WhiteElo "1083"]
[BlackElo "1468"]
[TimeControl "180+1"]
[EndTime "10:30:04 PDT"]
[Termination "Uživatel Vojta0007 zvítězil na čas"]

1. e4 {[%clk 0:02:58.9]} 1... c5 {[%clk 0:02:59.1]} 2. c3 {[%clk 0:02:55.2]}
2... d5 {[%clk 0:02:58.6]} 3. d4 {[%clk 0:02:54.9]} 3... cxd4 {[%clk 0:02:57.4]}
4. cxd4 {[%clk 0:02:53.1]} 4... dxe4 {[%clk 0:02:57]} 5. Nc3 {[%clk 0:02:48.6]}
5... Nf6 {[%clk 0:02:56]} 6. Bg5 {[%clk 0:02:44.4]} 6... Bf5 {[%clk 0:02:49]} 7.
Bb5+ {[%clk 0:02:31.2]} 7... Nbd7 {[%clk 0:02:43.7]} 8. Nge2 {[%clk 0:02:24.2]}
8... e6 {[%clk 0:02:42.5]} 9. Ng3 {[%clk 0:02:16.9]} 9... Bg6 {[%clk 0:02:39.1]}
10. Bxf6 {[%clk 0:02:00.8]} 10... gxf6 {[%clk 0:02:29.5]} 11. Ngxe4 {[%clk
0:01:45.4]} 11... Be7 {[%clk 0:02:23.1]} 12. O-O {[%clk 0:01:41.2]} 12... O-O
{[%clk 0:02:18.2]} 13. Qf3 {[%clk 0:01:33.8]} 13... f5 {[%clk 0:01:56.3]} 14.
Ng3 {[%clk 0:01:13.7]} 14... Nf6 {[%clk 0:01:47.8]} 15. Rad1 {[%clk 0:01:01]}
15... a6 {[%clk 0:01:38.7]} 16. Be2 {[%clk 0:00:58.3]} 16... Re8 {[%clk
0:01:35.2]} 17. Rfe1 {[%clk 0:00:56.4]} 17... Bf8 {[%clk 0:01:34.2]} 18. h4
{[%clk 0:00:52]} 18... h6 {[%clk 0:01:26.6]} 19. h5 {[%clk 0:00:48.5]} 19... Bh7
{[%clk 0:01:25.9]} 20. d5 {[%clk 0:00:38.2]} 20... Qb6 {[%clk 0:01:17.6]} 21.
dxe6 {[%clk 0:00:33.3]} 21... fxe6 {[%clk 0:01:14.8]} 22. Bc4 {[%clk 0:00:23.2]}
22... Re7 {[%clk 0:00:47.6]} 23. Nxf5 {[%clk 0:00:14.3]} 23... Bxf5 {[%clk
0:00:45.3]} 24. Qg3+ {[%clk 0:00:12.2]} 24... Kh8 {[%clk 0:00:38.2]} 25. Bxe6
{[%clk 0:00:09]} 25... Bxe6 {[%clk 0:00:35.7]} 26. Qg6 {[%clk 0:00:04.4]} 26...
Bg7 {[%clk 0:00:29.1]} 0-1